fUSD/lending_fUSD_20250211
["ID","MTS","AMOUNT","RATE_DAILY","PERIOD"]
[352689884,1739242256544,-500.0,0.00011506,2]
[352689885,1739242256555,-500.0,0.00011506,2]
[352689886,1739242256567,-623.9,0.00011506,2]
[352689887,1739242256577,-500.0,0.00011506,2]
[352689888,1739242256587,-659.7,0.00011506,2]
[352689889,1739242256598,-500.0,0.00011506,2]
[352689890,1739242256608,-500.0,0.00011506,2]
[352689891,1739242256618,-843.32,0.00011506,2]
[352689892,1739242256628,-500.0,0.00011506,2]
[352689893,1739242256638,-710.14,0.00011506,2]
[352689894,1739242256648,-500.0,0.00011506,2]
[352689895,1739242256659,-727.35,0.00011506,2]
[352689896,1739242256669,-500.0,0.00011506,2]
[352689897,1739242256679,-500.0,0.00011506,2]
[352689898,1739242256689,-236.14,0.00011506,2]
[352689899,1739242256700,-500.0,0.00011506,2]
[352689900,1739242256710,-500.0,0.00011506,2]
[352689901,1739242256720,-500.0,0.00011506,2]
[352689902,1739242256730,-623.43,0.00011506,2]
[352689903,1739242256740,-500.0,0.00011506,2]
[352689904,1739242256750,-500.0,0.00011506,2]
[352689905,1739242256760,-500.0,0.00011506,2]
[352689906,1739242256771,-789.25,0.00011506,2]
[352689907,1739242256782,-500.0,0.00011506,2]
[352689908,1739242256792,-500.0,0.00011506,2]
[352689909,1739242256802,-500.0,0.00011506,2]
[352689910,1739242256814,-500.0,0.00011506,2]
[352689911,1739242256825,-710.92,0.00011506,2]
[352689912,1739242256835,-498.0,0.00011506,2]
[352689913,1739242256846,-723.85,0.00011506,2]
[352689914,1739242256858,-500.0,0.00011506,2]
[352689915,1739242256870,-599.42968978,0.00011506,2]
[352689916,1739242256883,-500.0,0.00011506,2]
[352689917,1739242256897,-580.48,0.00011506,2]
[352689918,1739242256908,-554.57,0.00011506,2]
[352689919,1739242256919,-825.33,0.00011506,2]
[352689920,1739242256930,-193.28,0.00011506,2]
[352689921,1739242256941,-621.24,0.00011506,2]
[352689922,1739242256951,-627.02,0.00011506,2]
[352689923,1739242256962,-510.69,0.00011506,2]
[352689924,1739242256972,-572.28,0.00011506,2]
[352689925,1739242256982,-290.61019672,0.00011506,2]
[352689926,1739242256993,-731.51,0.00011506,2]
[352689927,1739242257003,-545.03,0.00011506,2]
[352689928,1739242257014,-500.0,0.00011506,2]
[352689929,1739242257025,-799.95,0.00011506,2]
[352689930,1739242257036,-500.0,0.00011506,2]
[352689931,1739242257047,-512.4,0.00011506,2]
[352689932,1739242257057,-316.26000081,0.00011506,2]
[352689933,1739242257072,-787.98,0.00011506,2]
[352689934,1739242257082,-500.0,0.00011506,2]
[352689935,1739242257093,-530.32,0.00011506,2]
[352689936,1739242257103,-570.97,0.00011506,2]
[352689937,1739242257114,-633.99,0.00011506,2]
[352689938,1739242257124,-500.0,0.00011506,2]
[352689939,1739242257134,-728.92,0.00011506,2]
[352689940,1739242257144,-500.0,0.00011506,2]
[352689941,1739242257155,-500.0,0.00011506,2]
[352689942,1739242257165,-824.22,0.00011506,2]
[352689943,1739242257174,-624.6,0.00011506,2]
[352689944,1739242257184,-500.0,0.00011506,2]
[352689945,1739242257195,-500.18,0.00011506,2]
[352689946,1739242257204,-500.0,0.00011506,2]
[352689947,1739242257214,-634.17,0.00011506,2]
[352689948,1739242257224,-500.0,0.00011506,2]
[352689949,1739242257235,-500.0,0.00011506,2]
[352689950,1739242257244,-500.0,0.00011506,2]
[352689951,1739242257255,-705.53,0.00011506,2]
[352689952,1739242257265,-616.21,0.00011506,2]
[352689953,1739242257275,-500.0,0.00011506,2]
[352689954,1739242257285,-500.0,0.00011506,2]
[352689955,1739242257295,-331.18471622,0.00011506,2]
[352689956,1739242257305,-500.0,0.00011506,2]
[352689957,1739242257316,-500.0,0.00011506,2]
[352689958,1739242257327,-709.73,0.00011506,2]
[352689959,1739242257338,-779.39,0.00011506,2]
[352689960,1739242257348,-500.0,0.00011506,2]
[352689961,1739242257359,-1791.74,0.00011506,2]
[352689962,1739242257369,-500.0,0.00011506,2]
[352689963,1739242257379,-1206.04,0.00011506,2]
[352689964,1739242257390,-612.25,0.00011506,2]
[352689965,1739242257401,-1055.4,0.00011506,2]
[352689966,1739242257411,-500.0,0.00011506,2]
[352689967,1739242257421,-1157.89,0.00011506,2]
[352689968,1739242257431,-1002.81,0.00011506,2]
[352689969,1739242257442,-1188.22,0.00011506,2]
[352689970,1739242257452,-587.27,0.00011506,2]
[352689971,1739242257462,-699.16,0.00011506,2]
[352689972,1739242257471,-398.31390874,0.00011506,2]
[352689973,1739242257482,-500.0,0.00011506,2]
[352689974,1739242257492,-500.0,0.00011506,2]
[352689975,1739242257502,-977.72,0.00011506,2]
[352689976,1739242257512,-665.81,0.00011506,2]
[352689977,1739242257523,-807.37,0.00011506,2]
[352689978,1739242257534,-500.0,0.00011506,2]
[352689979,1739242257544,-767.29,0.00011506,2]
[352689980,1739242257555,-617.19,0.00011506,2]
[352689981,1739242257568,-240.18960154,0.00011506,2]
[352689982,1739242257579,-721.83,0.00011506,2]
[352689983,1739242257590,-1174.78,0.00011506,2]
[352689984,1739242257601,-822.24,0.00011506,2]
[352689985,1739242257827,-1338.08,0.00011506,2]
[352689986,1739242257842,-745.58,0.00011506,2]
[352689987,1739242257852,-620.35,0.00011506,2]
[352689988,1739242257861,-1164.89,0.00011506,2]
[352689989,1739242257870,-3949.34,0.00011506,2]
[352689990,1739242257882,-1095.64,0.00011506,2]
[352689991,1739242257894,-500.0,0.00011506,2]
[352689992,1739242257904,-613.45,0.00011506,2]
[352689993,1739242257913,-1502.82,0.00011506,2]
[352689994,1739242257924,-509.24,0.00011506,2]
[352689995,1739242257935,-704.95,0.00011506,2]
[352689996,1739242257944,-674.24,0.00011506,2]
[352689997,1739242257954,-1059.3,0.00011506,2]
[352689998,1739242257965,-1251.3,0.00011506,2]
[352689999,1739242257975,-500.0,0.00011506,2]
[352690000,1739242257986,-804.32,0.00011506,2]
[352690001,1739242257995,-1358.76,0.00011506,2]
[352690002,1739242258006,-507.79,0.00011506,2]
[352690003,1739242258016,-551.27,0.00011506,2]
[352690004,1739242258026,-1548.78,0.00011506,2]
[352690005,1739242258036,-865.8,0.00011506,2]
[352690006,1739242258046,-500.0,0.00011506,2]
[352690007,1739242258055,-1779.0,0.00011506,2]
[352690008,1739242258066,-531.59,0.00011506,2]
[352690009,1739242258075,-776.01,0.00011506,2]
[352690010,1739242258085,-505.16,0.00011506,2]
[352690011,1739242258094,-1526.69,0.00011506,2]
[352690012,1739242258103,-1467.6,0.00011506,2]
[352690013,1739242258113,-657.43,0.00011506,2]
[352690014,1739242258123,-737.86,0.00011506,2]
[352690015,1739242258133,-633.86,0.00011506,2]
[352690016,1739242258143,-1701.71,0.00011506,2]
[352690017,1739242258153,-504.41,0.00011506,2]
[352690018,1739242258163,-593.52,0.00011506,2]
[352690019,1739242258173,-1363.55,0.00011506,2]
[352690020,1739242258182,-1116.68,0.00011506,2]
[352690021,1739242258192,-643.09,0.00011506,2]
[352690022,1739242258202,-582.28,0.00011506,2]
[352690023,1739242258212,-1358.58,0.00011506,2]
[352690024,1739242258222,-500.0,0.00011506,2]
[352690025,1739242258232,-2215.87,0.00011506,2]
[352690026,1739242258241,-500.0,0.00011506,2]
[352690027,1739242258250,-500.0,0.00011506,2]
[352690028,1739242258259,-526.19,0.00011506,2]
[352690029,1739242258270,-500.0,0.00011506,2]
[352690030,1739242258279,-1388.18,0.00011506,2]
[352690031,1739242258289,-1616.99,0.00011506,2]
[352690032,1739242258299,-1006.39,0.00011506,2]
[352690033,1739242258309,-500.0,0.00011506,2]
[352690034,1739242258322,-1472.63,0.00011506,2]
[352690035,1739242258332,-5671.44,0.00011506,2]
[352690036,1739242258342,-821.96,0.00011506,2]
[352690037,1739242258352,-500.0,0.00011506,2]
[352690038,1739242258362,-500.0,0.00011506,2]
[352690039,1739242258371,-1128.57,0.00011506,2]
[352690040,1739242258382,-1241.13,0.00011506,2]
[352690041,1739242258392,-842.8,0.00011506,2]
[352690042,1739242258402,-4503.03,0.00011506,2]
[352690043,1739242258412,-869.96,0.00011506,2]
[352690044,1739242258422,-899.69,0.00011506,2]
[352690045,1739242258432,-1644.76,0.00011506,2]
[352690046,1739242258443,-500.0,0.00011506,2]
[352690047,1739242258453,-1391.9,0.00011506,2]
[352690048,1739242258464,-500.0,0.00011506,2]
[352690049,1739242258473,-2567.97,0.00011506,2]
[352690050,1739242258483,-1095.16,0.00011506,2]
[352690051,1739242258493,-1706.92,0.00011506,2]
[352690052,1739242258503,-2186.81,0.00011506,2]
[352690053,1739242258513,-1109.59,0.00011506,2]
[352690054,1739242258523,-500.0,0.00011506,2]
[352690055,1739242258532,-2171.89,0.00011506,2]
[352690056,1739242258542,-797.73,0.00011506,2]
[352690057,1739242258553,-979.07,0.00011506,2]
[352690058,1739242258563,-2175.87,0.00011506,2]
[352690059,1739242258573,-500.0,0.00011506,2]
[352690060,1739242258583,-1333.38,0.00011506,2]
[352690061,1739242258592,-1411.83,0.00011506,2]
[352690062,1739242258603,-949.33,0.00011506,2]
[352690063,1739242258613,-2824.46,0.00011506,2]
[352690064,1739242258623,-918.74,0.00011506,2]
[352690065,1739242258632,-555.27,0.00011506,2]
[352690066,1739242258642,-1507.87,0.00011506,2]
[352690067,1739242258652,-948.94,0.00011506,2]
[352690068,1739242258662,-786.5,0.00011506,2]
[352690069,1739242258672,-1014.71,0.00011506,2]
[352690070,1739242258682,-1530.55,0.00011506,2]
[352690071,1739242258691,-690.61,0.00011506,2]
[352690072,1739242258701,-500.0,0.00011506,2]
[352690073,1739242258710,-500.0,0.00011506,2]
[352690074,1739242258720,-500.0,0.00011506,2]
[352690075,1739242258729,-1457.15,0.00011506,2]
[352690076,1739242258738,-2494.22,0.00011506,2]
[352690077,1739242258747,-685.22,0.00011506,2]
[352690078,1739242258757,-1334.07,0.00011506,2]
[352690079,1739242258766,-500.0,0.00011506,2]
[352690080,1739242258775,-1128.59,0.00011506,2]
[352690081,1739242258785,-909.39,0.00011506,2]
[352690082,1739242258795,-1435.65,0.00011506,2]
[352690083,1739242258804,-726.47,0.00011506,2]
[352690084,1739242258814,-764.4,0.00011506,2]
[352690085,1739242258824,-2213.04,0.00011506,2]
[352690086,1739242258833,-500.0,0.00011506,2]
[352690087,1739242258843,-1428.72,0.00011506,2]
[352690088,1739242258853,-857.59,0.00011506,2]
[352690089,1739242258864,-1888.24,0.00011506,2]
[352690090,1739242258875,-1005.01,0.00011506,2]
[352690091,1739242258888,-500.0,0.00011506,2]
[352690092,1739242258898,-625.48,0.00011506,2]
[352690093,1739242258908,-2702.49,0.00011506,2]
[352690094,1739242258918,-478.38400207,0.00011506,2]
[352690095,1739242258928,-854.07,0.00011506,2]
[352690096,1739242258938,-500.0,0.00011506,2]
[352690097,1739242258948,-1108.63,0.00011506,2]
[352690098,1739242258958,-1314.61,0.00011506,2]
[352690099,1739242258968,-1689.53,0.00011506,2]
[352690100,1739242258978,-500.0,0.00011506,2]
[352690101,1739242258988,-500.0,0.00011506,2]
[352690102,1739242258997,-840.07,0.00011506,2]
[352690103,1739242259006,-1832.92,0.00011506,2]
[352690104,1739242259016,-932.73,0.00011506,2]
[352690105,1739242259026,-500.0,0.00011506,2]
[352690106,1739242259035,-163.22016653,0.00011543,2]
[352690107,1739242259045,-307.467757,0.00011544,2]
[352690108,1739242259055,-434.32528322,0.00011578,2]
[352690109,1739242259067,-4100.0,0.0001158,2]
[352690110,1739242259078,-4000.0,0.0001158,2]
[352690111,1739242259088,-1500.0,0.0001158,2]
[352690112,1739242259098,-170.63,0.00011587,2]
[352690113,1739242259110,-76884.95286772,0.00011589,2]
[352690114,1739242259120,-8013.169353,0.000116,2]
[352690115,1739242259130,-91385.67314768,0.00011619,2]
[352690116,1739242259139,-502.98234552,0.00011621,2]
[352690117,1739242259149,-1000.0,0.00011621,2]
[352690118,1739242259159,-308.07448347,0.00011621,2]
[352690119,1739242259169,-202.0,0.0001163,2]
[352690120,1739242259179,-209.0,0.0001163,2]
[352690121,1739242259189,-300.0,0.00011642,2]
[352690122,1739242259199,-500.0,0.00011642,2]
[352690123,1739242259209,-514.595435,0.00011643,2]
[352690124,1739242259218,-557.224631,0.00011643,2]
[352690125,1739242259228,-500.0,0.00011643,2]
[352690126,1739242259238,-500.0,0.00011643,2]
[352690127,1739242259247,-500.0,0.00011643,2]
[352690128,1739242259256,-500.0,0.00011643,2]
[352690129,1739242259267,-500.0,0.00011643,2]
[352690130,1739242259276,-641.47,0.00011643,2]
[352690131,1739242259286,-500.0,0.00011643,2]
[352690132,1739242259296,-504.75,0.00011643,2]
[352690133,1739242259305,-151.260429,0.00011643,2]
[352690134,1739242259317,-500.0,0.00011643,2]
[352690135,1739242259327,-610.07,0.00011643,2]
[352690136,1739242259337,-500.0,0.00011643,2]
[352690137,1739242259347,-512.89,0.00011643,2]
[352690138,1739242259356,-500.0,0.00011643,2]
[352690139,1739242259366,-500.0,0.00011643,2]
[352690140,1739242259376,-500.0,0.00011643,2]
[352690141,1739242259386,-500.0,0.00011643,2]
[352690142,1739242259395,-500.0,0.00011643,2]
[352690143,1739242259405,-171.027545,0.00011643,2]
[352690144,1739242259415,-379.36004551,0.00011643,2]
[352690145,1739242259425,-545.69,0.00011643,2]
[352690146,1739242259435,-500.0,0.00011643,2]
[352690147,1739242259444,-682.22,0.00011643,2]
[352690148,1739242259454,-500.0,0.00011643,2]
[352690149,1739242259464,-693.67,0.00011643,2]
[352690150,1739242259474,-631.97,0.00011643,2]
[352690151,1739242259483,-736.3,0.00011643,2]
[352690152,1739242259493,-500.0,0.00011643,2]
[352690153,1739242259503,-500.0,0.00011643,2]
[352690154,1739242259513,-588.63,0.00011643,2]
[352690155,1739242259523,-500.0,0.00011643,2]
[352690156,1739242259532,-500.0,0.00011643,2]
[352690157,1739242259541,-500.0,0.00011643,2]
[352690158,1739242259551,-717.54,0.00011643,2]
[352690159,1739242259561,-550.9,0.00011643,2]
[352690160,1739242259571,-544.27,0.00011643,2]
[352690161,1739242259581,-500.0,0.00011643,2]
[352690162,1739242259593,-2407.31,0.00011643,2]
[352690163,1739242259603,-704.83,0.00011643,2]
[352690164,1739242259613,-500.0,0.00011643,2]
[352690165,1739242259623,-718.39,0.00011643,2]
[352690166,1739242259633,-623.53,0.00011643,2]
[352690167,1739242259643,-585.0,0.00011643,2]
[352690168,1739242259652,-500.0,0.00011643,2]
[352690169,1739242259662,-641.8,0.00011643,2]
[352690170,1739242259672,-462.87031142,0.00011643,2]
[352690171,1739242259682,-556.82,0.00011643,2]
[352690172,1739242259692,-500.0,0.00011643,2]
[352690173,1739242259702,-500.0,0.00011643,2]
[352690174,1739242259712,-744.44,0.00011643,2]
[352690175,1739242259722,-500.0,0.00011643,2]
[352690176,1739242259731,-500.0,0.00011643,2]
[352690177,1739242259742,-500.0,0.00011643,2]
[352690178,1739242259752,-945.61,0.00011643,2]
[352690179,1739242259761,-500.0,0.00011643,2]
[352690180,1739242259771,-500.0,0.00011643,2]
[352690181,1739242259780,-550.56,0.00011643,2]
[352690182,1739242259791,-500.0,0.00011643,2]
[352690183,1739242259799,-500.0,0.00011643,2]
[352690184,1739242259809,-376.57168922,0.00011643,2]
[352690185,1739242259822,-500.0,0.00011643,2]
[352690186,1739242259832,-532.6,0.00011643,2]
[352690187,1739242259842,-536.35,0.00011643,2]
[352690188,1739242259852,-500.0,0.00011643,2]
[352690189,1739242259861,-500.0,0.00011643,2]
[352690190,1739242259871,-548.05,0.00011643,2]
[352690191,1739242259882,-645.55,0.00011643,2]
[352690192,1739242259896,-500.0,0.00011643,2]
[352690193,1739242259905,-605.14,0.00011643,2]
[352690194,1739242259914,-500.0,0.00011643,2]
[352690195,1739242259923,-500.0,0.00011643,2]
[352690196,1739242259933,-500.0,0.00011643,2]
[352690197,1739242259943,-151.0,0.00011643,2]
[352690198,1739242259952,-500.0,0.00011643,2]
[352690199,1739242259962,-500.0,0.00011643,2]
[352690200,1739242259972,-623.9,0.00011643,2]
[352690201,1739242259982,-500.0,0.00011643,2]
[352690202,1739242259992,-659.7,0.00011643,2]
[352690203,1739242260002,-500.0,0.00011643,2]
[352690204,1739242260012,-843.32,0.00011643,2]
[352690205,1739242260022,-500.0,0.00011643,2]
[352690206,1739242260031,-710.14,0.00011643,2]
[352690207,1739242260042,-727.35,0.00011643,2]
[352690208,1739242260052,-500.0,0.00011643,2]
[352690209,1739242260064,-500.0,0.00011643,2]
[352690210,1739242260074,-500.0,0.00011643,2]
[352690211,1739242260084,-500.0,0.00011643,2]
[352690212,1739242260094,-500.0,0.00011643,2]
[352690213,1739242260103,-623.43,0.00011643,2]
[352690214,1739242260113,-500.0,0.00011643,2]
[352690215,1739242260123,-500.0,0.00011643,2]
[352690216,1739242260132,-789.25,0.00011643,2]
[352690217,1739242260141,-500.0,0.00011643,2]
[352690218,1739242260151,-500.0,0.00011643,2]
[352690219,1739242260161,-500.0,0.00011643,2]
[352690220,1739242260171,-500.0,0.00011643,2]
[352690221,1739242260182,-710.92,0.00011643,2]
[352690222,1739242260191,-723.85,0.00011643,2]
[352690223,1739242260201,-500.0,0.00011643,2]
[352690224,1739242260211,-580.48,0.00011643,2]
[352690225,1739242260220,-500.0,0.00011643,2]
[352690226,1739242260230,-554.57,0.00011643,2]
[352690227,1739242260239,-825.33,0.00011643,2]
[352690228,1739242260249,-621.24,0.00011643,2]
[352690229,1739242260260,-627.02,0.00011643,2]
[352690230,1739242260270,-510.69,0.00011643,2]
[352690231,1739242260279,-572.28,0.00011643,2]
[352690232,1739242260289,-731.51,0.00011643,2]
[352690233,1739242260301,-545.03,0.00011643,2]
[352690234,1739242260315,-213.75424223,0.00011643,2]
[352690235,1739242260328,-799.95,0.00011643,2]
[352690236,1739242260341,-500.0,0.00011643,2]
[352690237,1739242260351,-512.4,0.00011643,2]
[352690238,1739242260363,-787.98,0.00011643,2]
[352690239,1739242260375,-155.77458681,0.00011643,2]
[352690240,1739242260387,-530.32,0.00011643,2]
[352690241,1739242260398,-570.97,0.00011643,2]
[352690242,1739242260412,-633.99,0.00011643,2]
[352690243,1739242260425,-500.0,0.00011643,2]
[352690244,1739242260439,-728.92,0.00011643,2]
[352690245,1739242260451,-500.0,0.00011643,2]
[352690246,1739242260463,-500.0,0.00011643,2]
[352690247,1739242260475,-824.22,0.00011643,2]
[352690248,1739242260486,-624.6,0.00011643,2]
[352690249,1739242260496,-500.0,0.00011643,2]
[352690250,1739242260510,-500.18,0.00011643,2]
[352690251,1739242260522,-500.0,0.00011643,2]
[352690252,1739242260535,-634.17,0.00011643,2]
[352690253,1739242260547,-500.0,0.00011643,2]
[352690254,1739242260560,-500.0,0.00011643,2]
[352690255,1739242260576,-500.0,0.00011643,2]
[352690256,1739242260588,-705.53,0.00011643,2]
[352690257,1739242260601,-616.21,0.00011643,2]
[352690258,1739242260613,-500.0,0.00011643,2]
[352690259,1739242260625,-500.0,0.00011643,2]
[352690260,1739242260638,-500.0,0.00011643,2]
[352690261,1739242260650,-500.0,0.00011643,2]
[352690262,1739242260662,-709.73,0.00011643,2]
[352690263,1739242260674,-779.39,0.00011643,2]
[352690264,1739242260685,-500.0,0.00011643,2]
[352690265,1739242260697,-1791.74,0.00011643,2]
[352690266,1739242260709,-500.0,0.00011643,2]
[352690267,1739242260721,-1206.04,0.00011643,2]
[352690268,1739242260733,-612.25,0.00011643,2]
[352690269,1739242260743,-1055.4,0.00011643,2]
[352690270,1739242260755,-500.0,0.00011643,2]
[352690271,1739242260767,-1157.89,0.00011643,2]
[352690272,1739242260778,-1002.81,0.00011643,2]
[352690273,1739242260789,-1188.22,0.00011643,2]
[352690274,1739242260800,-587.27,0.00011643,2]
[352690275,1739242260815,-699.16,0.00011643,2]
[352690276,1739242260828,-500.0,0.00011643,2]
[352690277,1739242260838,-500.0,0.00011643,2]
[352690278,1739242260849,-977.72,0.00011643,2]
[352690279,1739242260860,-665.81,0.00011643,2]
[352690280,1739242260871,-807.37,0.00011643,2]
[352690281,1739242260885,-500.0,0.00011643,2]
[352690282,1739242260900,-767.29,0.00011643,2]
[352690283,1739242260913,-617.19,0.00011643,2]
[352690284,1739242260926,-721.83,0.00011643,2]
[352690285,1739242260937,-1174.78,0.00011643,2]
[352690286,1739242260949,-822.24,0.00011643,2]
[352690287,1739242260961,-1338.08,0.00011643,2]
[352690288,1739242260973,-745.58,0.00011643,2]
[352690289,1739242260985,-620.35,0.00011643,2]
[352690290,1739242260996,-1164.89,0.00011643,2]
[352690291,1739242261008,-3949.34,0.00011643,2]
[352690292,1739242261020,-1095.64,0.00011643,2]
[352690293,1739242261033,-500.0,0.00011643,2]
[352690294,1739242261045,-613.45,0.00011643,2]
[352690295,1739242261058,-1502.82,0.00011643,2]
[352690296,1739242261074,-509.24,0.00011643,2]
[352690297,1739242261086,-704.95,0.00011643,2]
[352690298,1739242261098,-674.24,0.00011643,2]
[352690299,1739242261110,-1059.3,0.00011643,2]
[352690300,1739242261122,-1251.3,0.00011643,2]
[352690301,1739242261135,-500.0,0.00011643,2]
[352690302,1739242261147,-804.32,0.00011643,2]
[352690303,1739242261159,-1358.76,0.00011643,2]
[352690304,1739242261171,-507.79,0.00011643,2]
[352690305,1739242261182,-551.27,0.00011643,2]
[352690306,1739242261194,-1548.78,0.00011643,2]
[352690307,1739242261204,-865.8,0.00011643,2]
[352690308,1739242261216,-500.0,0.00011643,2]
[352690309,1739242261227,-1779.0,0.00011643,2]
[352690310,1739242261238,-531.59,0.00011643,2]
[352690311,1739242261249,-776.01,0.00011643,2]
[352690312,1739242261260,-505.16,0.00011643,2]
[352690313,1739242261272,-1526.69,0.00011643,2]
[352690314,1739242261283,-1467.6,0.00011643,2]
[352690315,1739242261295,-657.43,0.00011643,2]
[352690316,1739242261306,-737.86,0.00011643,2]
[352690317,1739242261321,-633.86,0.00011643,2]
[352690318,1739242261333,-1701.71,0.00011643,2]
[352690319,1739242261350,-504.41,0.00011643,2]
[352690320,1739242261364,-593.52,0.00011643,2]
[352690321,1739242261378,-1363.55,0.00011643,2]
[352690322,1739242261400,-1116.68,0.00011643,2]
[352690323,1739242261413,-643.09,0.00011643,2]
[352690324,1739242261424,-582.28,0.00011643,2]
[352690325,1739242261437,-1358.58,0.00011643,2]
[352690326,1739242261449,-510.73058265,0.00011643,2]
[352690327,1739242261461,-2215.87,0.00011643,2]
[352690328,1739242261473,-500.0,0.00011643,2]
[352690329,1739242261486,-500.0,0.00011643,2]
[352690330,1739242261498,-526.19,0.00011643,2]
[352690331,1739242261511,-500.0,0.00011643,2]
[352690332,1739242261523,-1388.18,0.00011643,2]
[352690333,1739242261535,-1616.99,0.00011643,2]
[352690334,1739242261547,-1006.39,0.00011643,2]
[352690335,1739242261559,-500.0,0.00011643,2]
[352690336,1739242261573,-1472.63,0.00011643,2]
[352690337,1739242261584,-5671.44,0.00011643,2]
[352690338,1739242261596,-821.96,0.00011643,2]
[352690339,1739242261608,-500.0,0.00011643,2]
[352690340,1739242261620,-500.0,0.00011643,2]
[352690341,1739242261631,-1128.57,0.00011643,2]
[352690342,1739242261643,-1241.13,0.00011643,2]
[352690343,1739242261654,-842.8,0.00011643,2]
[352690344,1739242261666,-4503.03,0.00011643,2]
[352690345,1739242261677,-869.96,0.00011643,2]
[352690346,1739242261689,-899.69,0.00011643,2]
[352690347,1739242261700,-1644.76,0.00011643,2]
[352690348,1739242261711,-500.0,0.00011643,2]
[352690349,1739242261723,-1391.9,0.00011643,2]
[352690350,1739242261735,-2567.97,0.00011643,2]
[352690351,1739242261746,-500.0,0.00011643,2]
[352690352,1739242261758,-1095.16,0.00011643,2]
[352690353,1739242261770,-1706.92,0.00011643,2]
[352690354,1739242261782,-2186.81,0.00011643,2]
[352690355,1739242261794,-1109.59,0.00011643,2]
[352690356,1739242261806,-500.0,0.00011643,2]
[352690357,1739242261823,-2171.89,0.00011643,2]
[352690358,1739242261835,-797.73,0.00011643,2]
[352690359,1739242261846,-979.07,0.00011643,2]
[352690360,1739242261858,-2175.87,0.00011643,2]
[352690361,1739242261870,-500.0,0.00011643,2]
[352690362,1739242261884,-1333.38,0.00011643,2]
[352690363,1739242261896,-1411.83,0.00011643,2]
[352690364,1739242261907,-949.33,0.00011643,2]
[352690365,1739242261919,-2824.46,0.00011643,2]
[352690366,1739242261931,-918.74,0.00011643,2]
[352690367,1739242261943,-555.27,0.00011643,2]
[352690368,1739242261954,-1507.87,0.00011643,2]
[352690369,1739242261967,-948.94,0.00011643,2]
[352690370,1739242261978,-786.5,0.00011643,2]
[352690371,1739242261990,-1014.71,0.00011643,2]
[352690372,1739242262002,-1530.55,0.00011643,2]
[352690373,1739242262013,-690.61,0.00011643,2]
[352690374,1739242262025,-500.0,0.00011643,2]
[352690375,1739242262037,-500.0,0.00011643,2]
[352690376,1739242262048,-500.0,0.00011643,2]
[352690377,1739242262060,-1457.15,0.00011643,2]
[352690378,1739242262072,-2494.22,0.00011643,2]
[352690379,1739242262084,-685.22,0.00011643,2]
[352690380,1739242262096,-1334.07,0.00011643,2]
[352690381,1739242262107,-500.0,0.00011643,2]
[352690382,1739242262119,-1128.59,0.00011643,2]
[352690383,1739242262130,-909.39,0.00011643,2]